[Event "4th Tamil Nadu Circuit-IM 2023"]
[Site "Pollachi"]
[Date "2023.11.06"]
[Round "2.4"]
[White "Podolchenko, Evgeniy"]
[Black "Srihari L"]
[Result "0-1"]
[ECO "E94"]
[WhiteElo "2395"]
[BlackElo "2200"]
[Annotator "RC"]
[PlyCount "100"]
[EventDate "2023.10.23"]
[EventType "tourn"]
[EventCountry "IND"]
[SourceTitle "playchess.com"]
[Source "ChessBase"]
[SourceQuality "1"]
[TimeControl "5400+30"]

1. d4 {[%emt 0:02:32]} Nf6 {[%emt 0:00:05]} 2. c4 {[%emt 0:00:04]} g6 {[%emt 0:00:04]} 3. Nc3 {[%emt 0:00:04]} Bg7 {[%emt 0:00:04]} 4. e4 {[%emt 0:00:04]} d6 {[%emt 0:00:05]} 5. Nf3 {[%emt 0:00:04]} O-O {[%emt 0:00:06]} 6. Be2 {[%emt 0:00:05]} e5 {[%emt 0:00:06]} 7. O-O {[%emt 0:00:06]} exd4 {[%emt 0:00:05]} 8. Nxd4 {[%emt 0:00:05]} Re8 {[%emt 0:00:08]} 9. f3 {[%emt 0:00:20]} c6 {[%emt 0:00:06]} 10. Kh1 {[%emt 0:00:16]} Nbd7 {[%emt 0:00:10]} 11. Bf4 {[%emt 0:01:15]} Nh5 {[%emt 0:00:16]} 12. Be3 {[%emt 0:05:50]} f5 {[%emt 0:03:41]} 13. Qd2 {[%emt 0:04:08]} f4 {[%emt 0:00:30]} 14. Bf2 {[%emt 0:00:36]} Be5 {[%emt 0:08:39]} 15. Rfd1 {[%emt 0:01:27]} Qf6 {[%emt 0:04:03]} 16. Bf1 {[%emt 0:03:05]} Nf8 {[%emt 0:03:14]} 17. Rac1 {[%emt 0:04:49]} Ng7 {[%emt 0:05:29]} 18. b4 {[%emt 0:06:07]} g5 {[%emt 0:05:27]} 19. b5 {[%emt 0:06:08]} Bd7 {[%emt 0:02:50]} 20. bxc6 {[%emt 0:01:10]} bxc6 {[%emt 0:01:46]} 21. c5 {[%emt 0:02:54]} dxc5 {[%emt 0:02:06]} 22. Nb3 {[%emt 0:00:22]} Be6 {[%emt 0:05:17]} 23. Na4 {[%emt 0:03:51]} g4 {[%emt 0:12:01]} 24. Naxc5 {[%emt 0:03:07]} Bxb3 {[%emt 0:01:51]} 25. Nxb3 {[%emt 0:03:16]} g3 {[%emt 0:00:33]} 26. Bc5 {[%emt 0:04:41]} Rad8 {[%emt 0:17:37]} 27. Qb4 {[%emt 0:05:37]} Rxd1 {[%emt 0:04:54]} 28. Rxd1 {[%emt 0:00:02]} gxh2 {[%emt 0:00:10]} 29. Nd4 {[%emt 0:07:32]} Ng6 {[%emt 0:08:59]} 30. Bxa7 {[%emt 0:11:58]} Rd8 {[%emt 0:05:29]} 31. Qb3+ {[%emt 0:08:52]} Kh8 {[%emt 0:01:17]} 32. Ne2 {[%emt 0:00:27]} Nh5 {[%emt 0:02:35]} 33. a4 {[%emt 0:03:13]} Rg8 {[%emt 0:02:55]} 34. Bf2 {[%emt 0:07:58]} Nh4 {[%emt 0:00:26]} 35. a5 {[%emt 0:02:41]} Qg5 {[%emt 0:00:55]} 36. Bxh4 {[%emt 0:01:24]} Qxh4 {[%emt 0:00:02]} 37. Qb6 {[%emt 0:00:11]} Nf6 {[%emt 0:03:26]} 38. Qc5 {[%emt 0:01:23]} Qg5 {[%emt 0:01:03]} 39. a6 {[%emt 0:00:56]} h5 {[%emt 0:00:46]} 40. a7 {[%emt 0:01:07]} h4 {[%emt 0:00:11]} 41. Rb1 {[%emt 0:00:17]} h3 {[%emt 0:00:35]} 42. gxh3 {[%emt 0:00:15]} Qh5 {[%emt 0:00:49]} 43. Bg2 {[%emt 0:00:54]} Nxe4 {[%emt 0:00:16]} 44. Nxf4 {[%emt 0:00:44]} Ng3+ {[%emt 0:00:43]} 45. Kxh2 {[%emt 0:00:01]} Bxf4 {[%emt 0:00:21]} 46. Qxh5+ {[%emt 0:00:08]} Nxh5+ {[%emt 0:00:01]} 47. Kg1 {[%emt 0:00:14]} Be3+ {[%emt 0:00:06]} 48. Kf1 {[%emt 0:00:01]} Bxa7 {[%emt 0:00:08]} 49. f4 {[%emt 0:00:18]} Nxf4 {[%emt 0:00:09]} 50. Ra1 {[%emt 0:00:25]} Bd4 {[%emt 0:00:13]} 0-1

[Event "4th Tamil Nadu Circuit-IM 2023"]
[Site "Pollachi"]
[Date "2023.11.06"]
[Round "2.5"]
[White "Gochelashvili, David"]
[Black "Sekar, B."]
[Result "1-0"]
[ECO "B94"]
[WhiteElo "2277"]
[BlackElo "2333"]
[Annotator "RC"]
[PlyCount "77"]
[EventDate "2023.10.23"]
[EventType "tourn"]
[EventCountry "IND"]
[SourceTitle "playchess.com"]
[Source "ChessBase"]
[SourceQuality "1"]
[TimeControl "5400+30"]

1. e4 {[%emt 0:06:28]} c5 {[%emt 0:00:11]} 2. Nf3 {[%emt 0:00:00]} d6 {[%emt 0:00:04]} 3. d4 {[%emt 0:00:09]} cxd4 {[%emt 0:00:06]} 4. Nxd4 {[%emt 0:00:05]} Nf6 {[%emt 0:00:04]} 5. Nc3 {[%emt 0:00:06]} a6 {[%emt 0:00:02]} 6. Bg5 {[%emt 0:00:22]} Nbd7 {[%emt 0:00:55]} 7. f4 {[%emt 0:00:21]} Qc7 {[%emt 0:01:26]} 8. Qf3 {[%emt 0:00:18]} h6 {[%emt 0:00:17]} 9. Bxf6 {[%emt 0:01:14]} Nxf6 {[%emt 0:00:02]} 10. f5 {[%emt 0:00:19]} Qc5 {[%emt 0:00:27]} 11. O-O-O {[%emt 0:00:39]} g5 {[%emt 0:00:03]} 12. fxg6 {[%emt 0:02:08]} Bg4 {[%emt 0:00:17]} 13. gxf7+ {[%emt 0:00:06]} Kxf7 {[%emt 0:00:02]} 14. Qd3 {[%emt 0:00:16]} Bxd1 {[%emt 0:00:05]} 15. Nxd1 {[%emt 0:00:03]} Bg7 {[%emt 0:01:37]} 16. Qb3+ {[%emt 0:00:36]} d5 {[%emt 0:02:58]} 17. Nf5 {[%emt 0:00:16]} Nxe4 {[%emt 0:07:17]} 18. Bd3 {[%emt 0:00:30]} Nf6 {[%emt 0:07:07]} 19. Re1 {[%emt 0:02:26]} Rhe8 {[%emt 0:06:34]} 20. Nh4 {[%emt 0:03:25]} Kg8 {[%emt 0:10:12]} 21. Bg6 {[%emt 0:01:12]} Rec8 {[%emt 0:00:36]} 22. Bf5 {[%emt 0:04:07]} Rc7 {[%emt 0:07:36]} 23. Be6+ {[%emt 0:00:18]} Kh8 {[%emt 0:04:41]} 24. Qd3 {[%emt 0:08:30]} Bf8 {[%emt 0:05:11]} 25. Ng6+ {[%emt 0:32:07]} Kg7 {[%emt 0:00:03]} 26. Ne5 {[%emt 0:09:31]} Ne4 {[%emt 0:04:26]} 27. Bxd5 {[%emt 0:05:36]} e6 {[%emt 0:00:21]} 28. Rxe4 {[%emt 0:02:54]} Qxd5 {[%emt 0:06:39]} 29. Rg4+ {[%emt 0:04:25]} Kf6 {[%emt 0:01:24]} 30. Qf1+ {[%emt 0:10:26]} Ke7 {[%emt 0:01:54]} 31. Ng6+ {[%emt 0:00:05]} Kd6 {[%emt 0:00:10]} 32. Nxf8 {[%emt 0:02:01]} Qf5 {[%emt 0:00:23]} 33. Qxf5 {[%emt 0:00:48]} exf5 {[%emt 0:00:01]} 34. Rg6+ {[%emt 0:00:08]} Ke5 {[%emt 0:03:38]} 35. Re6+ {[%emt 0:00:19]} Kf4 {[%emt 0:00:37]} 36. Ne3 {[%emt 0:01:52]} Rc6 {[%emt 0:00:56]} 37. Ng6+ {[%emt 0:00:54]} Kg5 {[%emt 0:00:19]} 38. h4+ {[%emt 0:01:28]} Kh5 {[%emt 0:00:25]} 39. g3 {[%emt 0:00:07]} 1-0

[Event "4th Tamil Nadu Circuit-IM 2023"]
[Site "Pollachi"]
[Date "2023.11.07"]
[Round "3.1"]
[White "Sekar, B."]
[Black "Abdyzhapar, Asylbek"]
[Result "1/2-1/2"]
[ECO "C54"]
[WhiteElo "2333"]
[BlackElo "2314"]
[Annotator "RC"]
[PlyCount "104"]
[EventDate "2023.10.23"]
[EventType "tourn"]
[EventCountry "IND"]
[SourceTitle "playchess.com"]
[Source "ChessBase"]
[SourceQuality "1"]
[TimeControl "5400+30"]

1. e4 {[%emt 0:00:03]} e5 {[%emt 0:00:16]} 2. Nf3 {[%emt 0:00:14]} Nc6 {[%emt 0:00:04]} 3. Bc4 {[%emt 0:00:06]} Bc5 {[%emt 0:00:08]} 4. c3 {[%emt 0:00:47]} Nf6 {[%emt 0:00:05]} 5. d3 {[%emt 0:00:03]} d6 {[%emt 0:00:43]} 6. O-O {[%emt 0:00:08]} O-O {[%emt 0:00:17]} 7. h3 {[%emt 0:00:43]} h6 {[%emt 0:00:09]} 8. Re1 {[%emt 0:00:15]} a5 {[%emt 0:00:06]} 9. Nbd2 {[%emt 0:03:18]} Be6 {[%emt 0:03:10]} 10. Bb5 {[%emt 0:00:27]} Qb8 {[%emt 0:00:27]} 11. Nf1 {[%emt 0:01:09]} Qa7 {[%emt 0:01:21]} 12. Re2 {[%emt 0:00:39]} a4 {[%emt 0:01:14]} 13. Ng3 {[%emt 0:01:41]} Qa5 {[%emt 0:08:11]} 14. Bxc6 {[%emt 0:01:36]} bxc6 {[%emt 0:00:05]} 15. Nh4 {[%emt 0:03:04]} Rfe8 {[%emt 0:04:10]} 16. Re1 {[%emt 0:01:34]} d5 {[%emt 0:04:43]} 17. Qf3 {[%emt 0:02:15]} Nd7 {[%emt 0:08:40]} 18. Nhf5 {[%emt 0:30:18]} Bf8 {[%emt 0:03:38]} 19. Nh5 {[%emt 0:09:02]} Kh7 {[%emt 0:10:03]} 20. Nfxg7 {[%emt 0:41:18]} Bxg7 {[%emt 0:02:13]} 21. Nxg7 {[%emt 0:00:06]} Kxg7 {[%emt 0:00:46]} 22. Qg3+ {[%emt 0:00:04]} Kf8 {[%emt 0:07:06]} 23. f4 {[%emt 0:00:01]} dxe4 {[%emt 0:10:49]} 24. fxe5 {[%emt 0:00:23]} Nc5 {[%emt 0:09:51]} 25. Qh4 {[%emt 0:02:06]} Red8 {[%emt 0:04:11]} 26. Bxh6+ {[%emt 0:00:50]} Ke8 {[%emt 0:00:04]} 27. d4 {[%emt 0:00:16]} Nd3 {[%emt 0:03:50]} 28. Re2 {[%emt 0:00:01]} a3 {[%emt 0:03:43]} 29. b4 {[%emt 0:00:38]} Qd5 {[%emt 0:00:23]} 30. Bg5 {[%emt 0:00:39]} Rdb8 {[%emt 0:01:29]} 31. Rxe4 {[%emt 0:00:06]} Kd7 {[%emt 0:00:38]} 32. c4 {[%emt 0:00:53]} Qxc4 {[%emt 0:01:58]} 33. d5 {[%emt 0:00:01]} Qxd5 {[%emt 0:04:40]} 34. Rd4 {[%emt 0:00:05]} Rxb4 {[%emt 0:00:24]} 35. Rxd5+ {[%emt 0:00:01]} cxd5 {[%emt 0:00:50]} 36. Qg3 {[%emt 0:01:41]} Nc5 {[%emt 0:00:20]} 37. Bf6 {[%emt 0:00:35]} Ne4 {[%emt 0:00:31]} 38. Qg7 {[%emt 0:00:29]} Rab8 {[%emt 0:01:11]} 39. h4 {[%emt 0:00:14]} Nd2 {[%emt 0:02:45]} 40. Bg5 {[%emt 0:01:26]} Rg4 {[%emt 0:01:59]} 41. Qf6 {[%emt 0:00:23]} Nc4 {[%emt 0:00:59]} 42. Rf1 {[%emt 0:00:52]} Kc6 {[%emt 0:00:14]} 43. Rf4 {[%emt 0:00:36]} Rb1+ {[%emt 0:00:31]} 44. Rf1 {[%emt 0:00:28]} Rb2 {[%emt 0:01:00]} 45. Rf2 {[%emt 0:00:04]} d4 {[%emt 0:00:25]} 46. h5 {[%emt 0:01:08]} Ne3 {[%emt 0:02:27]} 47. h6 {[%emt 0:00:22]} Rxg2+ {[%emt 0:00:36]} 48. Rxg2 {[%emt 0:00:03]} Rxg2+ {[%emt 0:00:06]} 49. Kh1 {[%emt 0:00:01]} Rh2+ {[%emt 0:00:33]} 50. Kg1 {[%emt 0:00:27]} Rg2+ {[%emt 0:00:21]} 51. Kh1 {[%emt 0:00:01]} Rh2+ {[%emt 0:00:45]} 52. Kg1 {[%emt 0:00:02]} Rg2+ {[%emt 0:00:41]} 1/2-1/2

[Event "4th Tamil Nadu Circuit-IM 2023"]
[Site "Pollachi"]
[Date "2023.11.07"]
[Round "3.2"]
[White "Srihari L"]
[Black "Gochelashvili, David"]
[Result "1-0"]
[ECO "B77"]
[WhiteElo "2200"]
[BlackElo "2277"]
[Annotator "RC"]
[PlyCount "107"]
[EventDate "2023.10.23"]
[EventType "tourn"]
[EventCountry "IND"]
[SourceTitle "playchess.com"]
[Source "ChessBase"]
[SourceQuality "1"]
[TimeControl "5400+30"]

1. e4 {[%emt 0:00:03]} c5 {[%emt 0:05:14]} 2. Nf3 {[%emt 0:00:13]} Nc6 {[%emt 0:00:20]} 3. d4 {[%emt 0:00:08]} cxd4 {[%emt 0:00:04]} 4. Nxd4 {[%emt 0:00:05]} g6 {[%emt 0:00:06]} 5. Nc3 {[%emt 0:00:14]} Bg7 {[%emt 0:00:06]} 6. Be3 {[%emt 0:00:10]} Nf6 {[%emt 0:00:11]} 7. Bc4 {[%emt 0:00:17]} O-O {[%emt 0:00:11]} 8. Bb3 {[%emt 0:00:21]} d6 {[%emt 0:00:22]} 9. f3 {[%emt 0:01:03]} Nxd4 {[%emt 0:00:50]} 10. Bxd4 {[%emt 0:00:07]} Qa5 {[%emt 0:00:09]} 11. Qd2 {[%emt 0:04:32]} Be6 {[%emt 0:01:20]} 12. O-O-O {[%emt 0:00:12]} b5 {[%emt 0:00:42]} 13. Kb1 {[%emt 0:02:12]} b4 {[%emt 0:00:17]} 14. Bxe6 {[%emt 0:06:40]} fxe6 {[%emt 0:01:27]} 15. Ne2 {[%emt 0:00:08]} Qb5 {[%emt 0:00:43]} 16. Qd3 {[%emt 0:09:05]} Rfb8 {[%emt 0:03:59]} 17. Qxb5 {[%emt 0:08:48]} Rxb5 {[%emt 0:00:08]} 18. c4 {[%emt 0:00:10]} bxc3 {[%emt 0:16:53]} 19. Nxc3 {[%emt 0:03:33]} Rb4 {[%emt 0:00:29]} 20. a3 {[%emt 0:06:08]} Rc4 {[%emt 0:07:42]} 21. Ne2 {[%emt 0:02:29]} Nd7 {[%emt 0:13:09]} 22. Bxg7 {[%emt 0:04:10]} Kxg7 {[%emt 0:00:13]} 23. Rc1 {[%emt 0:00:14]} Nb6 {[%emt 0:08:04]} 24. Rxc4 {[%emt 0:16:56]} Nxc4 {[%emt 0:00:12]} 25. Rc1 {[%emt 0:00:20]} d5 {[%emt 0:07:45]} 26. Nf4 {[%emt 0:02:56]} Rb8 {[%emt 0:10:43]} 27. Nxe6+ {[%emt 0:08:06]} Kf6 {[%emt 0:00:18]} 28. Nc7 {[%emt 0:00:13]} Nxb2 {[%emt 0:06:35]} 29. Nxd5+ {[%emt 0:03:30]} Kg5 {[%emt 0:08:01]} 30. Ka1 {[%emt 0:00:31]} Nd3 {[%emt 0:06:48]} 31. Rd1 {[%emt 0:00:30]} Rb3 {[%emt 0:00:33]} 32. a4 {[%emt 0:12:07]} Ra3+ {[%emt 0:01:12]} 33. Kb1 {[%emt 0:01:07]} e6 {[%emt 0:00:01]} 34. Nc7 {[%emt 0:00:56]} Nf4 {[%emt 0:01:23]} 35. g3 {[%emt 0:00:25]} Ne2 {[%emt 0:00:09]} 36. f4+ {[%emt 0:05:57]} Kg4 {[%emt 0:01:21]} 37. Rd2 {[%emt 0:02:16]} Kf3 {[%emt 0:00:42]} 38. Nb5 {[%emt 0:01:54]} Re3 {[%emt 0:00:29]} 39. e5 {[%emt 0:00:09]} a6 {[%emt 0:00:35]} 40. Nc7 {[%emt 0:00:05]} Rb3+ {[%emt 0:00:24]} 41. Rb2 {[%emt 0:00:56]} Nc3+ {[%emt 0:00:37]} 42. Kc2 {[%emt 0:00:01]} Rxb2+ {[%emt 0:00:07]} 43. Kxb2 {[%emt 0:00:04]} Nxa4+ {[%emt 0:00:03]} 44. Kb3 {[%emt 0:00:08]} Nb6 {[%emt 0:01:09]} 45. Nxe6 {[%emt 0:00:02]} Kg2 {[%emt 0:00:14]} 46. Kb4 {[%emt 0:01:28]} Kxh2 {[%emt 0:00:54]} 47. Kc5 {[%emt 0:00:02]} Nc8 {[%emt 0:00:24]} 48. g4 {[%emt 0:00:07]} a5 {[%emt 0:00:30]} 49. f5 {[%emt 0:00:24]} gxf5 {[%emt 0:00:08]} 50. gxf5 {[%emt 0:00:02]} Ne7 {[%emt 0:00:16]} 51. f6 {[%emt 0:00:42]} Ng6 {[%emt 0:00:05]} 52. Kd6 {[%emt 0:00:03]} Kg3 {[%emt 0:01:38]} 53. Nd4 {[%emt 0:00:31]} Kf4 {[%emt 0:00:22]} 54. e6 {[%emt 0:00:05]} 1-0

[Event "4th Tamil Nadu Circuit-IM 2023"]
[Site "Pollachi"]
[Date "2023.11.07"]
[Round "3.3"]
[White "Laddha, Yash Jayesh"]
[Black "Podolchenko, Evgeniy"]
[Result "*"]
[ECO "B13"]
[WhiteElo "2171"]
[BlackElo "2395"]
[Annotator "RC"]
[PlyCount "49"]
[EventDate "2023.10.23"]
[EventType "tourn"]
[EventCountry "IND"]
[SourceTitle "playchess.com"]
[Source "ChessBase"]
[SourceQuality "1"]
[TimeControl "5400+30"]

1. e4 {[%emt 0:00:03]} c6 {[%emt 0:00:11]} 2. d4 {[%emt 0:00:04]} d5 {[%emt 0:00:05]} 3. exd5 {[%emt 0:00:04]} cxd5 {[%emt 0:00:07]} 4. Bd3 {[%emt 0:00:03]} Nc6 {[%emt 0:00:07]} 5. c3 {[%emt 0:00:04]} Nf6 {[%emt 0:00:04]} 6. Bf4 {[%emt 0:00:07]} Bg4 {[%emt 0:00:06]} 7. Qb3 {[%emt 0:00:05]} Qd7 {[%emt 0:00:05]} 8. Nd2 {[%emt 0:00:07]} e6 {[%emt 0:00:04]} 9. Ngf3 {[%emt 0:00:04]} Bxf3 {[%emt 0:00:05]} 10. Nxf3 {[%emt 0:00:05]} Bd6 {[%emt 0:00:05]} 11. Bxd6 {[%emt 0:00:07]} Qxd6 {[%emt 0:00:04]} 12. O-O {[%emt 0:00:06]} O-O {[%emt 0:00:32]} 13. Rae1 {[%emt 0:00:22]} Rab8 {[%emt 0:03:07]} 14. Ne5 {[%emt 0:02:24]} b5 {[%emt 0:06:17]} 15. a3 {[%emt 0:06:52]} a5 {[%emt 0:04:07]} 16. Qd1 {[%emt 0:11:10]} b4 {[%emt 0:06:38]} 17. axb4 {[%emt 0:02:17]} axb4 {[%emt 0:00:06]} 18. f4 {[%emt 0:00:13]} bxc3 {[%emt 0:03:44]} 19. bxc3 {[%emt 0:00:05]} g6 {[%emt 0:09:46]} 20. Qf3 {[%emt 0:20:10]} Rb2 {[%emt 0:06:38]} 21. g4 {[%emt 0:02:37]} Ra8 {[%emt 0:06:06]} 22. Rf2 {[%emt 0:23:03]} Raa2 {[%emt 0:03:54]} 23. Rxb2 {[%emt 0:06:13]} Rxb2 {[%emt 0:00:02]} 24. Rf1 {[%emt 0:01:27]} Qc7 {[%emt 0:07:29]} 25. Rf2 {[%emt 0:09:49]} *

[Event "4th Tamil Nadu Circuit-IM 2023"]
[Site "Pollachi"]
[Date "2023.11.07"]
[Round "3.4"]
[White "Shaik Sumer Arsh"]
[Black "Nandhidhaa, P V"]
[Result "1/2-1/2"]
[ECO "D38"]
[WhiteElo "2273"]
[BlackElo "2260"]
[Annotator "RC"]
[PlyCount "134"]
[EventDate "2023.10.23"]
[EventType "tourn"]
[EventCountry "IND"]
[SourceTitle "playchess.com"]
[Source "ChessBase"]
[SourceQuality "1"]
[TimeControl "5400+30"]

1. d4 {[%emt 0:00:06]} Nf6 {[%emt 0:00:34]} 2. c4 {[%emt 0:00:09]} e6 {[%emt 0:00:09]} 3. Nf3 {[%emt 0:00:09]} d5 {[%emt 0:00:15]} 4. Nc3 {[%emt 0:00:11]} Bb4 {[%emt 0:00:20]} 5. cxd5 {[%emt 0:00:13]} exd5 {[%emt 0:00:06]} 6. Bg5 {[%emt 0:00:12]} h6 {[%emt 0:00:22]} 7. Bh4 {[%emt 0:00:08]} O-O {[%emt 0:00:40]} 8. e3 {[%emt 0:00:10]} Bf5 {[%emt 0:01:01]} 9. Qb3 {[%emt 0:00:12]} Bxc3+ {[%emt 0:00:28]} 10. Qxc3 {[%emt 0:00:06]} Nbd7 {[%emt 0:02:23]} 11. Be2 {[%emt 0:00:13]} c6 {[%emt 0:01:12]} 12. Nd2 {[%emt 0:00:10]} Ne4 {[%emt 0:20:32]} 13. Bxd8 {[%emt 0:00:18]} Nxc3 {[%emt 0:00:08]} 14. bxc3 {[%emt 0:00:06]} Rfxd8 {[%emt 0:00:27]} 15. a4 {[%emt 0:00:09]} Nf6 {[%emt 0:03:13]} 16. Nf1 {[%emt 0:01:42]} Ne4 {[%emt 0:02:20]} 17. Ng3 {[%emt 0:00:21]} Bg6 {[%emt 0:04:05]} 18. Nxe4 {[%emt 0:00:48]} Bxe4 {[%emt 0:00:05]} 19. f3 {[%emt 0:01:26]} Bg6 {[%emt 0:00:55]} 20. Kd2 {[%emt 0:00:46]} Rd7 {[%emt 0:00:57]} 21. a5 {[%emt 0:02:56]} Re8 {[%emt 0:02:21]} 22. Rhe1 {[%emt 0:00:51]} Rde7 {[%emt 0:01:59]} 23. Bd3 {[%emt 0:01:12]} Bxd3 {[%emt 0:01:08]} 24. Kxd3 {[%emt 0:00:06]} f5 {[%emt 0:00:31]} 25. Ra4 {[%emt 0:07:59]} Kf7 {[%emt 0:03:51]} 26. c4 {[%emt 0:01:46]} Ke6 {[%emt 0:00:29]} 27. Rb4 {[%emt 0:04:27]} Kd6 {[%emt 0:03:02]} 28. h3 {[%emt 0:27:50]} h5 {[%emt 0:01:01]} 29. c5+ {[%emt 0:04:30]} Kc7 {[%emt 0:01:01]} 30. h4 {[%emt 0:02:50]} g6 {[%emt 0:03:41]} 31. Rb3 {[%emt 0:04:04]} a6 {[%emt 0:03:23]} 32. Rb2 {[%emt 0:09:23]} Kc8 {[%emt 0:02:10]} 33. Rbe2 {[%emt 0:00:53]} Rd8 {[%emt 0:03:27]} 34. Rb2 {[%emt 0:09:51]} Rde8 {[%emt 0:00:41]} 35. Rbe2 {[%emt 0:00:01]} Rd8 {[%emt 0:00:16]} 36. Rb2 {[%emt 0:00:02]} Rde8 {[%emt 0:00:08]} 37. Rb3 {[%emt 0:01:07]} Kc7 {[%emt 0:00:56]} 38. Ke2 {[%emt 0:09:52]} Rg8 {[%emt 0:09:24]} 39. Kf2 {[%emt 0:02:05]} g5 {[%emt 0:00:12]} 40. hxg5 {[%emt 0:00:08]} Rxg5 {[%emt 0:00:04]} 41. Reb1 {[%emt 0:01:01]} Kc8 {[%emt 0:00:28]} 42. Rh1 {[%emt 0:00:02]} Reg7 {[%emt 0:03:19]} 43. Rh2 {[%emt 0:00:02]} h4 {[%emt 0:03:59]} 44. Rb1 {[%emt 0:00:13]} Kd8 {[%emt 0:04:00]} 45. Rg1 {[%emt 0:00:35]} Rh7 {[%emt 0:00:17]} 46. Rgh1 {[%emt 0:00:12]} Rhg7 {[%emt 0:03:53]} 47. Kf1 {[%emt 0:00:25]} Ke7 {[%emt 0:00:55]} 48. Rxh4 {[%emt 0:04:36]} Rxg2 {[%emt 0:00:03]} 49. Rh7 {[%emt 0:00:10]} Kf6 {[%emt 0:02:21]} 50. R1h6+ {[%emt 0:01:41]} R2g6 {[%emt 0:01:10]} 51. Kf2 {[%emt 0:00:09]} Rxh6 {[%emt 0:03:22]} 52. Rxh6+ {[%emt 0:00:01]} Rg6 {[%emt 0:00:42]} 53. Rh8 {[%emt 0:00:08]} Rg7 {[%emt 0:00:28]} 54. Rb8 {[%emt 0:01:26]} Ke6 {[%emt 0:01:15]} 55. Rf8 {[%emt 0:02:28]} Rf7 {[%emt 0:01:59]} 56. Rh8 {[%emt 0:00:03]} Rg7 {[%emt 0:00:40]} 57. Rh6+ {[%emt 0:00:56]} Kf7 {[%emt 0:00:26]} 58. e4 {[%emt 0:04:16]} fxe4 {[%emt 0:01:37]} 59. fxe4 {[%emt 0:00:02]} dxe4 {[%emt 0:00:07]} 60. Ke3 {[%emt 0:00:02]} Ke7 {[%emt 0:01:50]} 61. Kxe4 {[%emt 0:00:39]} Kd7 {[%emt 0:00:14]} 62. d5 {[%emt 0:01:45]} cxd5+ {[%emt 0:01:27]} 63. Kxd5 {[%emt 0:00:03]} Rg5+ {[%emt 0:00:25]} 64. Kd4 {[%emt 0:00:02]} Rg4+ {[%emt 0:00:08]} 65. Kd5 {[%emt 0:00:01]} Rg5+ {[%emt 0:00:28]} 66. Kd4 {[%emt 0:00:01]} Rg4+ {[%emt 0:00:07]} 67. Kd5 {[%emt 0:00:04]} Rg5+ {[%emt 0:00:17]} 1/2-1/2

[Event "4th Tamil Nadu Circuit-IM 2023"]
[Site "Pollachi"]
[Date "2023.11.07"]
[Round "3.5"]
[White "Nawin J J"]
[Black "Laddha, Shubh Jayesh"]
[Result "1/2-1/2"]
[ECO "C64"]
[WhiteElo "2305"]
[BlackElo "2373"]
[Annotator "RC"]
[PlyCount "127"]
[EventDate "2023.10.23"]
[EventType "tourn"]
[EventCountry "IND"]
[SourceTitle "playchess.com"]
[Source "ChessBase"]
[SourceQuality "1"]
[TimeControl "5400+30"]

1. e4 {[%emt 0:01:30]} e5 {[%emt 0:00:04]} 2. Nf3 {[%emt 0:00:11]} Nc6 {[%emt 0:00:04]} 3. Bb5 {[%emt 0:00:09]} a6 {[%emt 0:00:04]} 4. Ba4 {[%emt 0:00:05]} Bc5 {[%emt 0:00:05]} 5. O-O {[%emt 0:00:14]} Nge7 {[%emt 0:00:04]} 6. c3 {[%emt 0:00:30]} Ng6 {[%emt 0:00:10]} 7. d4 {[%emt 0:00:28]} Ba7 {[%emt 0:00:12]} 8. Bb3 {[%emt 0:03:40]} O-O {[%emt 0:01:44]} 9. a4 {[%emt 0:02:34]} d6 {[%emt 0:07:25]} 10. h3 {[%emt 0:00:17]} h6 {[%emt 0:03:13]} 11. Be3 {[%emt 0:00:59]} Qf6 {[%emt 0:05:58]} 12. Na3 {[%emt 0:08:11]} Re8 {[%emt 0:09:49]} 13. Bc2 {[%emt 0:03:57]} Nf4 {[%emt 0:10:30]} 14. Kh2 {[%emt 0:00:37]} Rd8 {[%emt 0:21:01]} 15. d5 {[%emt 0:05:42]} Ne7 {[%emt 0:02:00]} 16. Ng1 {[%emt 0:01:13]} g5 {[%emt 0:08:55]} 17. g3 {[%emt 0:05:13]} Nfg6 {[%emt 0:00:34]} 18. Nc4 {[%emt 0:02:18]} Qg7 {[%emt 0:08:11]} 19. Bxa7 {[%emt 0:00:27]} Rxa7 {[%emt 0:00:04]} 20. Ne3 {[%emt 0:00:06]} Rf8 {[%emt 0:01:48]} 21. Qf3 {[%emt 0:00:45]} f6 {[%emt 0:00:59]} 22. Ne2 {[%emt 0:05:05]} Ra8 {[%emt 0:03:36]} 23. Rg1 {[%emt 0:02:15]} Qf7 {[%emt 0:04:54]} 24. Qh5 {[%emt 0:04:00]} Kh7 {[%emt 0:03:09]} 25. h4 {[%emt 0:20:25]} Nh8 {[%emt 0:04:15]} 26. Qf3 {[%emt 0:03:16]} Qg6 {[%emt 0:01:04]} 27. Nf5 {[%emt 0:01:48]} g4 {[%emt 0:01:29]} 28. Qd3 {[%emt 0:02:19]} Nxf5 {[%emt 0:00:36]} 29. exf5 {[%emt 0:00:06]} Qg7 {[%emt 0:00:15]} 30. Qc4 {[%emt 0:01:32]} h5 {[%emt 0:01:06]} 31. Raf1 {[%emt 0:00:35]} Qe7 {[%emt 0:01:06]} 32. Be4 {[%emt 0:06:45]} Nf7 {[%emt 0:00:42]} 33. f4 {[%emt 0:03:42]} b5 {[%emt 0:00:52]} 34. axb5 {[%emt 0:03:00]} axb5 {[%emt 0:00:08]} 35. Qd3 {[%emt 0:01:02]} Ra4 {[%emt 0:01:03]} 36. b4 {[%emt 0:00:12]} Bd7 {[%emt 0:00:23]} 37. Rg2 {[%emt 0:03:32]} Re8 {[%emt 0:00:43]} 38. Rgf2 {[%emt 0:01:10]} Ra2 {[%emt 0:00:39]} 39. Qb1 {[%emt 0:00:56]} Rea8 {[%emt 0:00:28]} 40. Nc1 {[%emt 0:04:04]} Ra1 {[%emt 0:00:24]} 41. Qc2 {[%emt 0:00:15]} R8a7 {[%emt 0:00:12]} 42. Nb3 {[%emt 0:01:05]} Rxf1 {[%emt 0:00:40]} 43. Rxf1 {[%emt 0:00:04]} Qd8 {[%emt 0:00:32]} 44. fxe5 {[%emt 0:00:21]} dxe5 {[%emt 0:00:17]} 45. Nc5 {[%emt 0:00:25]} Nd6 {[%emt 0:00:23]} 46. Rf2 {[%emt 0:01:16]} Ra1 {[%emt 0:00:23]} 47. Re2 {[%emt 0:01:44]} Be8 {[%emt 0:00:20]} 48. Ne6 {[%emt 0:00:18]} Qb8 {[%emt 0:00:18]} 49. Qb2 {[%emt 0:01:15]} Qa7 {[%emt 0:00:12]} 50. Bb1 {[%emt 0:02:00]} Nc4 {[%emt 0:00:41]} 51. Qb3 {[%emt 0:01:32]} Qb7 {[%emt 0:01:16]} 52. Ra2 {[%emt 0:00:52]} Qxd5 {[%emt 0:00:48]} 53. Nxc7 {[%emt 0:00:17]} Rxa2+ {[%emt 0:00:29]} 54. Qxa2 {[%emt 0:00:11]} Qd7 {[%emt 0:00:17]} 55. Nxe8 {[%emt 0:00:25]} Qxe8 {[%emt 0:00:03]} 56. Bd3 {[%emt 0:01:08]} Nd6 {[%emt 0:01:11]} 57. Qa7+ {[%emt 0:00:11]} Kg8 {[%emt 0:00:20]} 58. Qc7 {[%emt 0:00:29]} Qf8 {[%emt 0:00:28]} 59. Qc5 {[%emt 0:00:44]} Qb8 {[%emt 0:00:38]} 60. Qc6 {[%emt 0:00:26]} Qa7 {[%emt 0:00:41]} 61. Qxd6 {[%emt 0:00:39]} Qf2+ {[%emt 0:00:08]} 62. Kh1 {[%emt 0:00:02]} Qe1+ {[%emt 0:00:03]} 63. Kg2 {[%emt 0:00:08]} Qd2+ {[%emt 0:00:06]} 64. Kf1 {[%emt 0:00:51]} 1/2-1/2